bitfinex/quotes_SOLUSD_20220129
["timestamp","ask_amount","ask_price","bid_price","bid_amount"]
[1643427755048,0.25,91.937,91.88,0.25]
[1643427755451,0.25,91.937,91.858,24.74359222]
[1643427755452,16.332,91.93,91.858,24.74359222]
[1643427755649,16.332,91.93,91.868,6.0]
[1643427755849,6.0,91.92,91.868,6.0]
[1643427756049,0.25,91.929,91.868,6.0]
[1643427756249,33.44587087,91.919,91.868,6.0]
[1643427756652,33.44587087,91.919,91.87,6.0]
[1643427756849,33.44587087,91.919,91.871,0.25]
[1643427758056,33.44587087,91.919,91.87,0.25]
[1643427758454,33.44587087,91.919,91.87,22.95736927]
[1643427758654,33.44587087,91.919,91.88,6.0]
[1643427758852,33.44587087,91.919,91.881,0.25]
[1643427759054,33.44587087,91.919,91.881,6.25]
[1643427760454,33.44587087,91.919,91.881,0.25]
[1643427760654,33.44587087,91.919,91.872,0.25]
[1643427761254,33.44587087,91.919,91.881,6.0]
[1643427761758,33.44587087,91.919,91.882,0.25]
[1643427769164,33.44587087,91.919,91.88,0.25]
[1643427769365,33.44587087,91.919,91.872,0.25]
[1643427769964,33.44587087,91.919,91.881,6.0]
[1643427770367,33.44587087,91.919,91.882,0.25]
[1643427770766,17.83253886,91.96,91.882,0.25]
[1643427770967,16.328,91.96,91.885,6.0]
[1643427771167,6.0,91.95,91.892,6.0]
[1643427771468,6.0,91.95,91.893,0.25]
[1643427771667,43.55681164,91.949,91.893,24.877]
[1643427772068,0.25,91.948,91.893,24.877]
[1643427778999,0.25,91.948,91.903,6.0]
[1643427779204,0.25,91.948,91.893,24.877]
[1643427780001,0.25,91.948,91.903,6.0]
[1643427780201,0.25,91.948,91.893,24.877]
[1643427783009,43.55681164,91.949,91.904,6.85826115]
[1643427783409,43.55681164,91.949,91.914,6.0]
[1643427783810,43.55681164,91.949,91.915,0.25]
[1643427784612,43.55681164,91.949,91.92,6.0]
[1643427784815,43.55681164,91.949,91.921,0.25]
[1643427785014,43.55681164,91.949,91.915,0.25]
[1643427786117,43.55681164,91.949,91.911,0.25]
[1643427786316,43.55681164,91.949,91.92,6.0]
[1643427786721,43.55681164,91.949,91.921,0.25]
[1643427788419,43.55681164,91.949,91.911,0.25]
[1643427788618,43.55681164,91.949,91.92,6.0]
[1643427788818,43.55681164,91.949,91.921,0.25]
[1643427790221,16.322,91.99,91.921,0.25]
[1643427790420,0.25,91.989,91.921,24.7428]
[1643427790619,0.25,91.989,91.931,6.0]
[1643427790820,0.25,91.989,91.921,24.7428]
[1643427791222,16.324,91.98,91.921,24.7428]
[1643427791420,0.25,91.979,91.921,0.25]
[1643427791622,23.6723,91.979,91.921,0.25]
[1643427791920,33.24562366,91.978,91.921,0.25]
[1643427792120,33.24562366,91.978,91.911,24.3807]
[1643427792121,33.24562366,91.978,91.912,0.25]
[1643427792323,0.25,91.977,91.912,0.25]
[1643427792922,0.25,91.977,91.911,24.3807]
[1643427793121,6.0,91.968,91.911,24.3807]
[1643427793323,0.25,91.967,91.911,24.3807]
[1643427794323,0.25,91.967,91.912,0.25]
[1643427801650,16.5829,91.967,91.911,24.3807]
[1643427801848,16.5829,91.967,91.908,23.594]
[1643427802653,6.0,91.957,91.88,15.77]
[1643427802850,0.25,91.956,91.881,24.8025]
[1643427803050,0.25,91.956,91.881,25.0525]
[1643427805851,0.25,91.959,91.881,25.0525]
[1643427808154,16.329,91.95,91.881,25.0525]
[1643427808354,24.5925,91.949,91.881,25.0525]
[1643427809153,37.12316732,91.948,91.881,25.0525]
[1643427809352,6.0,91.939,91.881,25.0525]
[1643427810362,0.25,91.938,91.88,15.77]
[1643427810554,0.25,91.938,91.861,1.48659222]
[1643427810754,0.25,91.938,91.854,1.48659222]
[1643427810954,0.25,91.938,91.851,1.48659222]
[1643427811156,0.25,91.938,91.85,1.48659222]
[1643427811553,38.62770618,91.948,91.851,1.48659222]
[1643427811554,0.25,91.947,91.851,1.48659222]
[1643427811754,0.25,91.947,91.852,24.1012]
[1643427812054,16.332,91.93,91.852,24.3512]
[1643427812458,0.25,91.929,91.852,24.3512]
[1643427812858,24.2228,91.929,91.852,24.3512]
[1643427813255,37.81633882,91.918,91.852,24.3512]
[1643427813455,24.4358,91.917,91.852,24.3512]
[1643427813656,24.6858,91.917,91.852,24.3512]
[1643427815059,24.4358,91.917,91.852,24.3512]
[1643427815259,24.4358,91.917,91.853,2.72011476]
[1643427815462,24.4358,91.917,91.862,6.0]
[1643427815659,24.4358,91.917,91.863,30.5816]
[1643427815859,24.4358,91.917,91.863,30.8316]
[1643427817159,24.4358,91.917,91.863,24.8316]
[1643427826263,0.25,91.916,91.863,24.8316]
[1643427826464,6.0,91.907,91.863,24.8316]
[1643427827065,6.0,91.907,91.863,24.5816]
[1643427827268,0.25,91.906,91.863,24.5816]
[1643427828668,6.0,91.907,91.863,24.5816]
[1643427828869,0.25,91.906,91.864,0.25]
[1643427829872,0.25,91.916,91.864,0.25]
[1643427831472,6.0,91.907,91.864,0.25]
[1643427831873,0.25,91.906,91.864,0.25]
[1643427832774,0.25,91.916,91.864,0.25]
[1643427834175,0.25,91.916,91.873,6.0]
[1643427834374,24.4358,91.917,91.874,0.25]
[1643427834573,37.81633882,91.918,91.876,6.0]
[1643427834776,37.81633882,91.918,91.877,0.25]
[1643427834974,1.50453886,91.951,91.877,111.77011476]
[1643427835173,16.4804,91.969,91.89,15.77]
[1643427835376,16.4804,91.969,91.891,24.5661]
[1643427835575,1.50453886,91.982,91.901,6.0]
[1643427835775,1.50453886,91.985,91.902,24.5661]
[1643427835977,1.50453886,91.985,91.903,26.65311433]
[1643427836177,1.50453886,91.999,91.912,6.0]
[1643427836375,1.50453886,92.0,91.92,15.77]
[1643427836575,16.627,92.028,91.93,21.77]
[1643427836576,1.50453886,92.015,91.93,21.77]
[1643427836776,1.50453886,92.023,91.931,0.25]
[1643427836978,41.97054768,92.022,91.94,6.0]
[1643427837277,41.97054768,92.022,91.941,2.97011476]
[1643427837477,41.97054768,92.022,91.941,8.97011476]
[1643427837677,41.97054768,92.022,91.942,2.72011476]
[1643427837878,41.97054768,92.022,91.95,6.0]
[1643427838079,41.97054768,92.022,91.952,6.0]
[1643427838280,41.97054768,92.022,91.953,0.25]
[1643427838779,0.25,92.021,91.953,0.25]
[1643427838978,0.25,92.021,91.953,6.25]
[1643427839181,0.25,92.021,91.953,0.25]
[1643427839378,0.25,92.021,91.963,6.0]
[1643427839580,0.25,92.021,91.951,0.25]
[1643427839880,16.316,92.02,91.951,0.25]
[1643427840280,0.25,92.019,91.951,0.25]
[1643427842208,6.0,92.01,91.951,0.25]
[1643427842586,0.25,92.009,91.951,0.25]
[1643427844888,6.0,92.01,91.951,0.25]
[1643427846289,0.25,92.009,91.951,0.25]
[1643427847488,0.25,92.019,91.951,0.25]
[1643427850215,6.0,92.01,91.951,0.25]
[1643427850414,0.25,92.009,91.951,0.25]
[1643427861627,0.25,92.009,91.994,3.1172412]
[1643427863136,72.0,92.008,91.951,24.8591]
[1643427863335,72.0,92.008,91.129,0.2]
[1643427863336,0.25,92.007,91.93,15.77]
[1643427863533,0.25,92.007,91.931,24.1515]
[1643427864135,1.50453886,92.005,91.931,24.1515]
[1643427864335,0.25,92.004,91.932,28.10087689]
[1643427864732,0.25,92.004,91.933,0.25]
[1643427865134,16.32,92.0,91.933,0.25]
[1643427865336,0.25,91.999,91.933,0.25]
[1643427865533,0.25,91.999,91.91,18.48457728]
[1643427865738,1.50453886,91.998,91.91,15.77]
[1643427865934,1.50453886,91.998,91.922,0.25]
[1643427866133,16.323,91.98,91.922,0.25]
[1643427866437,0.25,91.979,91.922,30.92659629]
[1643427866633,6.0,91.97,91.922,30.92659629]
[1643427866834,0.25,91.969,91.922,30.92659629]
[1643427869336,0.25,91.969,91.922,0.25]
[1643427870338,6.0,91.97,91.922,27.49539951]
[1643427870539,0.25,91.969,91.922,27.49539951]
[1643427872240,6.0,91.97,91.922,27.49539951]
[1643427873040,6.0,91.97,91.922,0.25]
[1643427873242,6.0,91.97,91.91,15.77]
[1643427873440,19.4,91.97,91.91,15.77]
[1643427873641,35.725,91.97,91.91,15.77]
[1643427873841,35.725,91.97,91.881,24.0793]
[1643427873842,0.25,91.969,91.881,25.56589222]
[1643427874144,0.25,91.969,91.879,29.51087126]
[1643427874340,1.50453886,91.965,91.869,1.48659222]
[1643427874542,1.50453886,91.952,91.856,1.48659222]
[1643427874942,1.50453886,91.95,91.854,1.48659222]
[1643427875143,1.50453886,91.944,91.848,1.48659222]
[1643427875345,16.337,91.92,91.849,28.64495051]
[1643427875543,27.317,91.92,91.849,28.64495051]
[1643427875744,2.95669142,91.919,91.831,23.9705]
[1643427875968,3.20669142,91.919,91.831,23.9705]
[1643427876750,3.20669142,91.919,91.832,26.90755731]
[1643427876947,3.20669142,91.919,91.832,27.15755731]
[1643427877147,16.338,91.9,91.832,27.15755731]
[1643427877350,34.60072794,91.899,91.832,26.90755731]
[1643427879252,10.98,91.92,91.833,0.25]
[1643427879253,16.335,91.92,91.833,0.25]
[1643427879450,54.441,91.95,91.842,6.0]
[1643427879649,54.441,91.95,91.843,29.8141]
[1643427879850,54.441,91.95,91.843,30.0641]
[1643427880049,54.441,91.95,91.85,6.0]
[1643427880251,33.57348025,91.949,91.853,6.0]
[1643427880650,33.57348025,91.949,91.854,0.25]
[1643427880852,33.57348025,91.949,91.854,23.2851]
[1643427881050,6.0,91.939,91.854,23.2851]
[1643427881250,0.25,91.938,91.854,23.2851]
[1643427881854,0.25,91.938,91.865,4.98166834]
[1643427882052,16.332,91.93,91.865,4.98166834]
[1643427882259,16.332,91.93,91.866,0.25]
[1643427882459,0.25,91.929,91.866,0.25]
[1643427885182,0.25,91.929,91.875,6.0]
[1643427885382,0.25,91.929,91.876,0.25]
[1643427885681,33.57348025,91.949,91.876,0.25]
[1643427885882,1.50453886,91.978,91.876,0.25]
[1643427886084,1.50453886,91.982,91.883,6.0]
[1643427886282,15.9679,91.998,91.884,0.25]
[1643427886482,15.9679,91.998,91.89,6.0]
[1643427886685,15.9679,91.998,91.891,49.4683]
[1643427886883,40.16389772,91.997,91.895,26.90755731]
[1643427887186,16.322,91.99,91.905,6.0]
[1643427887384,6.0,91.987,91.91,15.77]
[1643427887583,6.0,91.987,91.92,6.0]
[1643427887784,0.25,91.986,91.921,0.25]
[1643427890486,0.25,91.986,91.92,6.0]
[1643427890787,0.25,91.989,91.921,0.25]
[1643427891088,6.0,91.98,91.921,0.25]
[1643427891288,0.25,91.979,91.921,0.25]
[1643427891490,6.0,91.98,91.921,0.25]
[1643427891686,16.322,91.99,91.921,0.25]
[1643427892086,6.0,91.98,91.921,0.25]
[1643427893489,6.0,91.98,91.911,0.25]
[1643427896291,0.25,91.979,91.911,0.25]
[1643427899199,39.2591163,91.969,91.911,0.25]
[1643427901100,16.327,91.96,91.86,17.25659222]
[1643427901301,16.327,91.96,91.872,23.5835]
[1643427902101,16.327,91.96,91.891,54.50487711]
[1643427903104,6.0,91.95,91.891,54.50487711]
[1643427903305,22.33,91.95,91.891,54.50487711]
[1643427903706,22.33,91.95,91.891,24.9531]
[1643427904704,0.25,91.949,91.891,24.9531]
[1643427904904,41.05165805,91.939,91.891,24.9531]
[1643427905307,0.25,91.938,91.891,24.9531]
[1643427905707,0.25,91.938,91.874,22.44634021]
[1643427905908,0.25,91.938,91.875,0.25]
[1643427906106,0.25,91.938,91.851,24.4806]
[1643427906107,16.332,91.93,91.851,24.4806]
[1643427906309,0.25,91.929,91.851,24.4806]
[1643427906807,6.0,91.92,91.851,24.4806]
[1643427907007,6.0,91.91,91.851,24.4806]
[1643427907208,39.2591163,91.909,91.851,24.4806]
[1643427907407,0.25,91.908,91.852,0.25]
[1643427907610,6.0,91.899,91.852,0.25]
[1643427907809,0.25,91.898,91.852,0.25]
[1643427908410,0.25,91.898,91.835,24.5295]
[1643427909812,0.25,91.898,91.836,2.70691009]
[1643427910016,6.0,91.899,91.837,0.25]
[1643427910216,39.2591163,91.909,91.846,6.0]
[1643427910412,16.335,91.92,91.846,6.0]
[1643427910615,16.335,91.92,91.848,6.0]
[1643427910814,16.335,91.92,91.849,0.25]
[1643427911020,16.335,91.92,91.857,6.0]
[1643427911316,0.25,91.919,91.858,0.25]
[1643427911515,33.51666131,91.919,91.858,0.25]
[1643427912113,6.0,91.909,91.858,0.25]
[1643427912517,6.0,91.909,91.851,0.25]
[1643427913116,16.331,91.94,91.86,6.0]
[1643427913316,1.50453886,91.966,91.861,23.4122]
[1643427913517,54.43,91.97,91.862,6.0]
[1643427913716,54.43,91.97,91.871,6.0]
[1643427913918,40.2976,91.969,91.872,49.7989]
[1643427914116,43.90684341,91.968,91.873,2.64523852]
[1643427914316,43.90684341,91.968,91.874,0.25]
[1643427914518,6.0,91.958,91.883,6.0]
[1643427914916,0.25,91.957,91.884,0.25]
[1643427915116,0.25,91.957,91.885,6.0]
[1643427915318,0.25,91.957,91.886,0.25]
[1643427915517,0.25,91.957,91.894,6.0]
[1643427915917,0.25,91.957,91.895,0.25]
[1643427918542,0.25,91.959,91.895,0.25]
[1643427918942,16.328,91.96,91.895,0.25]
[1643427919142,16.328,91.96,91.896,2.70691009]
[1643427919342,16.328,91.96,91.897,0.25]
[1643427919543,16.328,91.96,91.907,25.66093235]
[1643427919945,16.328,91.96,91.917,6.0]
[1643427920345,16.328,91.96,91.918,0.25]
[1643427920745,43.90684341,91.968,91.918,0.25]
[1643427921446,43.90684341,91.968,91.908,0.25]
[1643427921848,0.25,91.967,91.908,0.25]
[1643427922047,6.0,91.958,91.908,0.25]
[1643427925154,6.0,91.958,91.917,6.0]
[1643427925352,6.0,91.958,91.888,2.70691009]
[1643427925558,6.0,91.958,91.878,2.70691009]
[1643427925760,6.0,91.958,91.872,24.7526]
[1643427926455,0.25,91.957,91.886,26.10827462]
[1643427927057,16.329,91.95,91.886,26.10827462]
[1643427927263,0.25,91.949,91.896,0.25]
[1643427927463,36.40393094,91.939,91.896,0.25]
[1643427927865,0.25,91.938,91.896,0.25]
[1643427930296,36.40393094,91.939,91.896,0.25]
[1643427933000,6.0,91.929,91.896,0.25]
[1643427933897,18.77,91.929,91.896,0.25]
[1643427935298,12.77,91.929,91.896,0.25]
[1643427936199,6.0,91.919,91.896,0.25]
[1643427936399,6.0,91.929,91.896,0.25]
[1643427936599,6.0,91.929,91.876,0.25]
[1643427937299,0.25,91.928,91.862,1.48659222]
[1643427937499,0.25,91.928,91.853,1.48659222]
[1643427937699,0.25,91.928,91.849,1.48659222]
[1643427937899,6.25,91.928,91.848,1.48659222]
[1643427938099,6.25,91.928,91.849,31.49349689]
[1643427938405,6.25,91.928,91.849,34.20040698]
[1643427938599,23.1942,91.927,91.85,2.95691009]
[1643427938800,0.25,91.926,91.85,2.95691009]
[1643427939000,6.0,91.917,91.852,1.48659222]
[1643427939203,6.0,91.917,91.851,4.19350231]
[1643427939400,0.25,91.916,91.853,2.70691009]
[1643427939800,0.25,91.916,91.854,24.7951]
[1643427945208,0.25,91.916,91.854,23.2951]
[1643427946408,0.25,91.916,91.855,0.25]
[1643427947108,0.25,91.916,91.854,23.2951]
[1643427947709,0.25,91.916,91.85,15.77]
[1643427948411,0.25,91.916,91.851,23.1598]
[1643427952115,39.87871455,91.907,91.851,23.1598]
[1643427952317,0.25,91.906,91.851,23.1598]
[1643427952515,6.0,91.897,91.851,23.1598]
[1643427953716,0.25,91.896,91.851,23.1598]
[1643427953920,6.0,91.897,91.851,23.1598]
[1643427956449,25.49953886,91.939,91.852,2.70614547]
[1643427956648,47.1032,91.939,91.862,6.0]
[1643427956848,47.1032,91.939,91.863,23.1367]
[1643427957048,47.1032,91.939,91.873,6.0]
[1643427957250,47.1032,91.939,91.874,23.576]
[1643427957449,41.45018065,91.938,91.874,23.826]
[1643427957649,41.45018065,91.938,91.885,0.39572876]
[1643427957850,41.45018065,91.938,91.885,0.64572876]
[1643427958452,41.45018065,91.938,91.885,23.15012876]
[1643427960051,41.45018065,91.938,91.885,22.5044]
[1643427960353,41.45018065,91.938,91.886,0.25]
[1643427962957,41.45018065,91.938,91.879,22.97534423]
[1643427963153,41.45018065,91.938,91.863,2.70614547]
[1643427963154,6.0,91.928,91.863,2.70614547]
[1643427963357,0.25,91.927,91.864,23.041]
[1643427964158,0.25,91.927,91.865,26.01033127]
[1643427964355,0.25,91.927,91.865,26.26033127]
[1643427972262,0.25,91.927,91.866,2.70614547]
[1643427972461,0.25,91.927,91.865,0.25]
[1643427972862,0.25,91.927,91.864,23.041]
[1643427974368,6.0,91.92,91.865,0.25]
[1643427974667,6.0,91.918,91.865,0.25]
[1643427974868,0.25,91.917,91.865,0.25]
[1643427975065,6.25,91.917,91.865,0.25]
[1643427975267,6.0,91.917,91.865,0.25]
[1643427976668,6.0,91.928,91.866,2.70614547]
[1643427976868,6.0,91.928,91.867,0.25]
[1643427977068,6.0,91.935,91.87,15.77]
[1643427977271,6.0,91.935,91.871,0.25]
[1643427977468,22.5714,91.946,91.88,6.0]
[1643427977772,43.68304702,91.945,91.881,23.0442]
[1643427977969,43.68304702,91.945,91.881,22.7942]
[1643427978169,43.68304702,91.945,91.882,0.25]
[1643427979069,6.0,91.935,91.882,0.25]
[1643427981298,0.25,91.934,91.882,0.25]
[1643427982499,6.0,91.935,91.882,0.25]
[1643427986707,43.43304702,91.945,91.882,0.25]
[1643427986902,0.25,91.944,91.882,0.25]
[1643427987704,0.25,91.944,91.87,17.25659222]
[1643427987901,6.0,91.935,91.87,15.77]
[1643427988302,6.0,91.935,91.871,2.70614547]
[1643427988303,0.25,91.934,91.871,2.70614547]
[1643427989206,0.25,91.934,91.872,0.25]
[1643427989601,0.25,91.934,91.873,2.70614547]
[1643427989803,0.25,91.934,91.874,0.25]
[1643427990003,0.25,91.934,91.874,23.1241]
[1643427990207,0.25,91.934,91.875,2.70614547]
[1643427990404,0.25,91.934,91.876,0.25]
[1643427990904,0.25,91.934,91.876,2.95614547]
[1643427993707,6.0,91.935,91.876,2.95614547]
[1643427993907,0.25,91.934,91.876,2.95614547]
[1643427994507,6.0,91.935,91.886,6.0]
[1643427994708,43.43304702,91.945,91.886,6.0]
[1643427994908,0.25,91.944,91.887,23.0077]
[1643427995108,6.0,91.935,91.887,23.0077]
[1643427997715,0.25,91.934,91.887,23.0077]
[1643428003420,0.25,91.934,91.924,0.0006478]
[1643428003619,3.03219997,91.93,91.924,0.0006478]
[1643428003819,0.25,91.929,91.924,0.0006478]
[1643428004922,0.25,91.935,91.924,0.0006478]
[1643428013163,0.25,91.935,91.926,2.7962183]
[1643428013758,6.0,91.938,91.926,2.7962183]
[1643428013958,0.25,91.937,91.926,2.7962183]
[1643428014157,44.56780732,91.937,91.926,2.7962183]
[1643428014657,44.56780732,91.937,91.926,0.0062183]
[1643428021171,44.31780732,91.937,91.926,0.0062183]
[1643428028378,1.50453886,91.956,91.926,0.0062183]
[1643428028579,54.419,91.99,91.926,0.0062183]
[1643428028580,1.50453886,91.961,91.926,0.0062183]
[1643428028777,16.0929,91.968,91.926,0.0062183]
[1643428029377,36.69254175,91.967,91.926,0.0062183]
[1643428029777,0.25,91.966,91.926,0.0062183]
[1643428030181,6.0,91.957,91.926,0.0062183]
[1643428030580,6.0,91.956,91.926,0.0062183]
[1643428031380,24.6652,91.966,91.926,0.0062183]
[1643428033182,24.4152,91.966,91.926,0.0062183]
[1643428033383,0.25,91.965,91.926,0.0062183]
[1643428036707,24.4152,91.966,91.926,0.0062183]
[1643428036907,0.25,91.965,91.926,0.0062183]
[1643428038909,6.0,91.956,91.926,0.0062183]
[1643428039309,0.25,91.965,91.926,0.0062183]
[1643428039908,6.0,91.956,91.926,0.0062183]
[1643428045122,6.0,91.956,91.932,2.8026539]
[1643428046022,0.25,91.965,91.932,2.8026539]
[1643428046422,24.4152,91.966,91.933,0.25]
[1643428052729,36.69254175,91.967,91.933,0.25]
[1643428063460,1.50453886,91.986,91.934,2.69334999]
[1643428063660,1.50453886,92.009,91.942,6.0]
[1643428063860,1.50453886,92.017,91.95,15.77]
[1643428064061,1.50453886,92.025,91.96,6.0]
[1643428064259,22.6431,92.049,91.97,15.77]
[1643428064260,1.50453886,92.032,91.97,15.77]
[1643428064459,40.46813733,92.031,91.971,30.78164667]
[1643428064664,40.46813733,92.031,91.98,6.0]
[1643428064859,40.46813733,92.031,91.981,6.25]
[1643428065059,40.46813733,92.031,91.99,6.0]
[1643428065260,40.46813733,92.031,91.991,0.25]
[1643428065459,40.46813733,92.031,91.991,6.25]
[1643428065659,40.46813733,92.031,91.991,0.25]
[1643428065860,40.46813733,92.031,91.992,6.0]
[1643428066262,40.46813733,92.031,91.993,0.25]
[1643428067262,1.50453886,92.065,91.993,0.25]
[1643428067460,1.50453886,92.081,92.001,108.8]
[1643428067661,1.50453886,92.081,92.001,132.9508]
[1643428067861,1.50453886,92.096,92.012,108.8]
[1643428068060,1.50453886,92.104,92.022,6.0]
[1643428068261,44.99092508,92.103,92.023,109.05]
[1643428068461,44.99092508,92.103,92.031,108.8]
[1643428068661,44.99092508,92.103,92.04,15.77]
[1643428068860,44.99092508,92.103,92.051,108.8]
[1643428069061,44.99092508,92.103,92.041,0.25]
[1643428069261,44.99092508,92.103,92.01,15.77]
[1643428069462,44.99092508,92.103,91.953,5.0]
[1643428069463,16.303,92.1,91.97,197.08]
[1643428069663,16.303,92.1,91.968,45.847]
[1643428069664,16.303,92.1,91.99,15.77]
[1643428069865,16.303,92.1,91.98,15.77]
[1643428069866,2.95669142,92.099,91.98,15.77]
[1643428070064,6.0,92.089,91.981,31.051416]
[1643428070263,0.25,92.088,91.981,31.051416]
[1643428070464,3.20669142,92.088,91.981,31.051416]
[1643428070662,16.309,92.07,91.981,31.051416]
[1643428070863,35.56984927,92.069,91.982,0.25]
[1643428071064,6.0,92.059,91.982,0.25]
[1643428071262,6.0,92.059,91.991,6.0]
[1643428071663,6.0,92.059,91.993,6.0]
[1643428071862,6.0,92.059,91.994,0.25]
[1643428072163,6.0,92.059,91.992,0.25]
[1643428072365,6.0,92.049,91.992,0.25]
[1643428072565,0.25,92.058,91.992,0.25]
[1643428073964,0.25,92.058,91.991,0.25]
[1643428074364,0.25,92.058,92.0,6.0]
[1643428074775,6.0,92.059,92.001,0.25]
[1643428075376,0.25,92.058,92.001,0.25]
[1643428075775,0.25,92.058,91.991,0.25]
[1643428077377,6.0,92.059,91.991,0.25]
[1643428077579,0.25,92.068,91.991,0.25]
[1643428078581,35.31984927,92.069,91.991,0.25]
[1643428078979,6.0,92.059,91.991,0.25]
[1643428079179,35.31984927,92.069,92.0,6.0]
[1643428079379,35.31984927,92.069,92.001,0.25]
[1643428080784,0.25,92.068,92.001,0.25]
[1643428081786,6.0,92.059,92.001,0.25]
[1643428081985,6.0,92.059,91.99,15.77]
[1643428081986,6.0,92.059,91.991,0.25]
[1643428082187,0.25,92.058,91.991,0.25]
[1643428082387,6.0,92.059,91.991,0.25]
[1643428082785,0.25,92.058,91.991,0.25]
[1643428083386,6.0,92.059,91.991,0.25]
[1643428083886,35.31984927,92.069,91.991,0.25]
[1643428084088,35.31984927,92.069,92.0,6.0]
[1643428084289,35.31984927,92.069,92.001,0.25]
[1643428084888,35.31984927,92.069,92.001,6.25]
[1643428085888,6.0,92.059,92.001,6.25]
[1643428087092,35.31984927,92.069,92.001,6.25]
[1643428087692,35.31984927,92.069,92.002,108.8]
[1643428087994,35.31984927,92.069,92.003,0.25]
[1643428090596,35.31984927,92.069,92.012,6.0]
[1643428090791,35.31984927,92.069,92.013,1.08780965]
[1643428095323,35.31984927,92.069,92.014,0.25]
[1643428096524,35.31984927,92.069,92.013,0.83780965]
[1643428096926,35.31984927,92.069,92.013,7.08780965]
[1643428102034,32.51719537,92.069,92.013,7.08780965]
[1643428110039,1.50453886,92.084,92.014,108.8]
[1643428110237,1.50453886,92.089,92.02,15.77]
[1643428110438,1.50453886,92.087,92.02,15.77]
[1643428110639,1.50453886,92.088,92.03,6.0]
[1643428110838,1.50453886,92.092,92.031,23.4852]
[1643428111039,34.13261888,92.091,92.041,6.0]
[1643428111441,34.13261888,92.091,92.042,6.25]
[1643428112472,34.13261888,92.091,92.042,0.25]
[1643428112868,34.13261888,92.091,92.033,0.25]
[1643428114669,34.13261888,92.091,92.042,6.0]
[1643428114868,34.13261888,92.091,92.043,0.25]
[1643428116870,6.0,92.081,92.033,0.25]
[1643428117571,6.0,92.081,92.032,30.75630626]
[1643428117771,34.13261888,92.091,92.032,30.75630626]
[1643428117772,0.25,92.08,92.032,30.75630626]
[1643428118671,0.25,92.08,92.042,6.0]
[1643428119674,1.75453886,92.09,92.042,6.0]
[1643428120173,1.50453886,92.091,92.042,6.0]
[1643428120373,1.50453886,92.092,92.042,6.0]
[1643428120579,1.50453886,92.098,92.043,0.25]
[1643428120980,1.50453886,92.102,92.043,133.2847]
[1643428121177,1.50453886,92.107,92.043,133.2847]
[1643428121377,1.50453886,92.113,92.043,133.2847]
[1643428121581,6.0,92.103,92.054,3.9355733]
[1643428121880,35.12946613,92.102,92.055,0.25]
[1643428122077,41.12946613,92.102,92.055,0.25]
[1643428122679,41.12946613,92.102,92.059,1.6774956]
[1643428122878,1.50453886,92.115,92.06,0.25]
[1643428123079,6.0,92.105,92.06,0.25]
[1643428123680,6.0,92.106,92.06,0.25]